bitfinex-derivatives/quotes_BNBF0:USTF0_20230901
["timestamp","ask_amount","ask_price","bid_price","bid_amount"]
[1693590536704,0.17371009,212.36,211.79,0.86734656]
[1693590536900,0.17371009,212.35,211.79,0.86734656]
[1693590537100,0.17371009,212.36,211.79,0.86734656]
[1693590537299,0.17371009,212.35,211.79,0.86734656]
[1693590537498,0.17371009,212.34,211.79,0.94444655]
[1693590537705,0.17371009,212.37,211.8,0.86734656]
[1693590537908,0.17371009,212.36,211.8,0.86734656]
[1693590538105,5.07026642,212.38,211.8,0.86734656]
[1693590538106,0.17371009,212.37,211.8,0.86734656]
[1693590538305,0.17371009,212.36,211.8,0.86734656]
[1693590538506,0.17371009,212.35,211.8,0.86734656]
[1693590538706,0.17371009,212.34,211.8,0.86734656]
[1693590539005,0.17371009,212.33,211.8,0.86734656]
[1693590539206,0.17371009,212.32,211.8,0.86734656]
[1693590539506,0.17371009,212.31,211.8,0.86734656]
[1693590539707,0.17371009,212.3,211.8,0.86734656]
[1693590539901,0.17371009,212.29,211.8,0.86734656]
[1693590540105,0.17371009,212.37,211.8,0.86734656]
[1693590540508,0.17371009,212.37,211.81,0.86734656]
[1693590540709,0.17371009,212.37,211.73,0.07709999]
[1693590540909,0.17371009,212.37,211.74,0.86762318]
[1693590541207,0.17371009,212.37,211.75,0.86762318]
[1693590541405,5.05643249,212.31,211.76,0.86762318]
[1693590541606,0.17371009,212.3,211.77,0.86762318]
[1693590541806,0.17371009,212.3,211.73,0.94466092]
[1693590542003,0.17371009,212.31,211.74,0.86758777]
[1693590542209,0.17371009,212.3,211.74,0.86758777]
[1693590542409,0.17371009,212.31,211.74,0.86758777]
[1693590542609,0.17371009,212.3,211.73,0.86758777]
[1693590542801,0.17371009,212.29,211.74,0.86758777]
[1693590543007,0.17371009,212.32,211.73,0.94462551]
[1693590543306,0.17371009,212.31,211.74,0.86758777]
[1693590543502,0.17371009,212.33,211.74,0.86758777]
[1693590543710,0.17371009,212.32,211.74,0.86758777]
[1693590543909,0.17371009,212.31,211.74,0.86758777]
[1693590544209,0.17371009,212.3,211.75,0.86758777]
[1693590544505,0.17371009,212.29,211.76,0.86758777]
[1693590544707,0.17371009,212.34,211.77,0.86758777]
[1693590544910,0.17371009,212.33,211.72,0.07703774]
[1693590545107,0.17371009,212.34,211.73,0.86756721]
[1693590545307,0.17371009,212.33,211.73,0.86756721]
[1693590545603,0.17371009,212.32,211.73,0.86756721]
[1693590545909,0.17371009,212.31,211.73,0.86756721]
[1693590546104,5.23014258,212.34,211.73,0.86756721]
[1693590546408,0.17371009,212.33,211.73,0.86756721]
[1693590547007,0.17371009,212.32,211.73,0.86756721]
[1693590547203,0.17371009,212.31,211.73,0.86756721]
[1693590547509,0.17371009,212.3,211.73,0.86756721]
[1693590547709,0.17371009,212.29,211.73,0.86756721]
[1693590547911,0.17371009,212.28,211.73,0.86756721]
[1693590548108,0.17371009,212.34,211.73,0.86756721]
[1693590548309,0.17371009,212.33,211.73,0.86756721]
[1693590548608,0.17371009,212.32,211.73,0.86756721]
[1693590548809,0.17371009,212.34,211.73,0.86756721]
[1693590549010,0.17371009,212.33,211.73,0.86756721]
[1693590549210,5.05643249,212.35,211.73,0.86756721]
[1693590549211,0.17371009,212.34,211.73,0.86756721]
[1693590549412,0.17371009,212.33,211.73,0.86756721]
[1693590549605,0.17371009,212.34,211.72,0.86756721]
[1693590549810,0.17371009,212.33,211.73,0.86756721]
[1693590550110,0.17371009,212.32,211.74,0.86756721]
[1693590550410,0.17371009,212.31,211.75,0.86756721]
[1693590550711,0.17371009,212.3,211.76,0.86756721]
[1693590551007,0.17371009,212.29,211.71,0.07703774]
[1693590551212,0.17371009,212.28,211.72,0.86763828]
[1693590551412,0.17371009,212.27,211.72,0.86763828]
[1693590551707,0.17371009,212.26,211.72,0.86763828]
[1693590551910,0.17371009,212.25,211.72,0.94467602]
[1693590552112,0.17371009,212.24,211.73,0.86763828]
[1693590552306,0.17371009,212.23,211.73,0.86763828]
[1693590552514,0.17371009,212.22,211.73,0.86763828]
[1693590552711,0.17371009,212.31,211.73,0.86763828]
[1693590552909,0.17371009,212.3,211.73,0.86763828]
[1693590553108,0.17371009,212.32,211.73,0.86763828]
[1693590553712,5.23014258,212.32,211.73,0.94467602]
[1693590553912,0.17371009,212.31,211.74,0.86763828]
[1693590554810,0.17371009,212.31,211.74,0.94467602]
[1693590555013,0.17371009,212.31,211.75,0.86763828]
[1693590555213,5.23014258,212.31,211.75,0.86763828]
[1693590555512,5.23014258,212.31,211.75,0.94467602]
[1693590555513,0.17371009,212.3,211.75,0.94467602]
[1693590555710,0.17371009,212.3,211.76,0.86763828]
[1693590556112,0.17371009,212.29,211.76,0.86763828]
[1693590556310,0.17371009,212.31,211.76,0.86763828]
[1693590556514,0.17371009,212.3,211.76,0.86763828]
[1693590556714,0.17371009,212.31,211.76,0.86763828]
[1693590556910,0.17371009,212.3,211.75,0.86763828]
[1693590557110,0.17371009,212.31,211.76,0.86762277]
[1693590557313,0.17371009,212.3,211.75,0.86762277]
[1693590557514,0.17371009,212.31,211.76,0.86761066]
[1693590557816,0.17371009,212.3,211.74,0.07703774]
[1693590558110,0.17371009,212.29,211.75,0.86761161]
[1693590558313,0.17371009,212.31,211.75,0.86761161]
[1693590558514,0.17371009,212.3,211.75,0.86761161]
[1693590558714,0.17371009,212.31,211.75,0.86761161]
[1693590558917,0.17371009,212.3,211.76,0.07703774]
[1693590559115,0.17371009,212.32,211.77,0.86761161]
[1693590559417,0.17371009,212.31,211.77,0.86761161]
[1693590559615,0.17371009,212.33,211.77,0.86761161]
[1693590559810,0.17371009,212.32,211.77,0.86761161]
[1693590560015,0.17371009,212.33,211.77,0.86761161]
[1693590560214,0.17371009,212.32,211.77,0.86761161]
[1693590560411,0.17371009,212.33,211.77,0.86761161]
[1693590560613,0.17371009,212.32,211.77,0.86761161]
[1693590560814,7.07900549,212.36,211.77,0.86761161]
[1693590560815,0.17371009,212.31,211.77,0.86761161]
[1693590561011,0.17371009,212.3,211.77,0.86761161]
[1693590561315,0.17371009,212.29,211.77,0.86761161]
[1693590561511,0.17371009,212.28,211.77,0.86761161]
[1693590561717,0.17371009,212.27,211.77,0.86761161]
[1693590561912,0.17371009,212.26,211.77,0.86761161]
[1693590562118,0.17371009,212.25,211.77,0.94464935]
[1693590562312,0.17371009,212.32,211.78,0.86761161]
[1693590562618,0.17371009,212.31,211.78,0.86761161]
[1693590562817,5.23014258,212.33,211.78,0.86761161]
[1693590563018,0.17371009,212.32,211.78,0.94464935]
[1693590563216,0.17371009,212.32,211.78,0.07703774]
[1693590563417,0.17371009,212.32,211.76,0.07703774]
[1693590563631,0.17371009,212.32,211.77,0.8675251]
[1693590564019,0.17371009,212.32,211.81,0.07703774]
[1693590564220,0.17371009,212.36,211.83,0.07703774]
[1693590564521,0.17371009,212.35,211.82,0.07703774]
[1693590564714,0.17371009,212.37,211.83,0.94432702]
[1693590564918,0.17371009,212.36,211.84,0.86728928]
[1693590565116,0.17371009,212.38,211.84,0.86728928]
[1693590568018,0.17371009,212.38,211.84,0.94432702]
[1693590568218,0.17371009,212.38,211.85,0.86728928]
[1693590568422,0.17371009,212.38,211.84,0.86728928]
[1693590568625,0.17371009,212.38,211.85,0.86724345]
[1693590568816,0.17371009,212.38,211.84,0.86724345]
[1693590569022,0.17371009,212.38,211.85,0.86723592]
[1693590569224,0.17371009,212.38,211.83,0.86723592]
[1693590570220,5.05643249,212.37,211.83,0.86723592]
[1693590570424,5.05643249,212.37,211.81,0.94427366]
[1693590570425,0.17371009,212.36,211.81,0.94427366]
[1693590570724,0.17371009,212.36,211.82,0.86723592]
[1693590571723,0.17371009,212.38,211.82,0.86723592]
[1693590574030,0.17371009,212.38,211.81,0.86723592]
[1693590574231,0.17371009,212.38,211.82,0.86723592]
[1693590574427,0.17371009,212.38,211.81,0.86723592]
[1693590574631,0.17371009,212.38,211.82,0.86723592]
[1693590574827,0.17371009,212.38,211.81,0.86723592]
[1693590575028,5.23014258,212.38,211.82,0.86723592]
[1693590575330,0.17371009,212.37,211.83,0.86723592]
[1693590575530,0.17371009,212.37,211.81,0.86723592]
[1693590575726,0.17371009,212.37,211.82,0.86723592]
[1693590575930,0.17371009,212.37,211.8,0.86723592]
[1693590576230,0.17371009,212.37,211.81,0.86723592]
[1693590576430,0.17371009,212.37,211.79,0.86723592]
[1693590576630,0.17371009,212.37,211.8,0.86723592]
[1693590576833,0.17371009,212.37,211.79,0.86723592]
[1693590577026,0.17371009,212.37,211.8,0.86723592]
[1693590577228,5.23014258,212.37,211.79,0.86723592]
[1693590577428,0.17371009,212.36,211.79,0.86723592]
[1693590577830,0.17371009,212.36,211.78,0.86723592]
[1693590578133,0.17371009,212.36,211.79,0.86723592]
[1693590578326,0.17371009,212.36,211.78,0.86723592]
[1693590578524,0.17371009,212.36,211.79,0.86723592]
[1693590578832,5.05643249,212.35,211.8,0.86723592]
[1693590579130,0.17371009,212.34,211.81,0.86723592]
[1693590579332,0.17371009,212.34,211.77,0.86723592]
[1693590579529,0.17371009,212.34,211.78,0.86723592]
[1693590579725,0.17371009,212.34,211.77,0.86723592]
[1693590579925,0.17371009,212.34,211.78,0.86723592]
[1693590580130,0.17371009,212.34,211.77,0.86723592]
[1693590580331,0.17371009,212.35,211.78,0.86723592]
[1693590580531,0.17371009,212.34,211.77,0.94427366]
[1693590580727,0.17371009,212.35,211.78,0.86723592]
[1693590581432,0.17371009,212.35,211.79,0.86723592]
[1693590581733,0.17371009,212.34,211.8,0.86723592]
[1693590581928,0.17371009,212.36,211.79,0.86723592]
[1693590582128,0.17371009,212.35,211.8,0.86723592]
[1693590582325,0.17371009,212.34,211.78,0.86723592]
[1693590582530,0.17371009,212.33,211.79,0.86723592]
[1693590582730,5.05643249,212.37,211.71,0.15407548]
[1693590582731,0.17371009,212.36,211.8,0.86723592]
[1693590582930,7.07900549,212.4,211.78,0.07703774]
[1693590582931,0.17371009,212.35,211.79,0.86723592]
[1693590583133,0.17371009,212.34,211.8,0.86723592]
[1693590583326,0.17371009,212.33,211.81,0.86723592]
[1693590583530,0.17371009,212.32,211.82,0.86723592]
[1693590583830,0.17371009,212.31,211.83,0.86723592]
[1693590584026,0.17371009,212.37,211.79,0.86723592]
[1693590584333,0.17371009,212.36,211.8,0.86723592]
[1693590584631,5.05643249,212.38,211.78,0.07703774]
[1693590584632,0.17371009,212.35,211.81,0.86723592]
[1693590584833,0.17371009,212.37,211.83,0.07703774]
[1693590585027,0.17371009,212.36,211.84,0.86723592]
[1693590585225,0.17371009,212.42,211.84,0.86723592]
[1693590585428,0.17371009,212.41,211.84,0.86723592]
[1693590585631,0.17371009,212.42,211.84,0.86723592]
[1693590585832,0.17371009,212.41,211.84,0.86723592]
[1693590586028,0.17371009,212.4,211.84,0.86723592]
[1693590586228,0.17371009,212.39,211.84,0.86723592]
[1693590586431,0.17371009,212.38,211.84,0.86723592]
[1693590586626,0.17371009,212.37,211.84,0.86723592]
[1693590586830,0.17371009,212.36,211.84,0.86723592]
[1693590587030,0.17371009,212.44,211.84,0.86723592]
[1693590587230,0.17371009,212.43,211.84,0.86723592]
[1693590587430,0.17371009,212.44,211.84,0.86723592]
[1693590587732,0.17371009,212.44,211.84,0.94427366]
[1693590587931,0.17371009,212.44,211.85,0.86723592]
[1693590588233,0.17371009,212.43,211.86,0.86723592]
[1693590588433,0.17371009,212.42,211.87,0.86723592]
[1693590588635,0.17371009,212.41,211.88,0.86723592]
[1693590588835,0.17371009,212.4,211.89,0.86723592]
[1693590589131,0.17371009,212.39,211.86,0.86723592]
[1693590589335,0.17371009,212.48,211.87,0.86723592]
[1693590589634,0.17371009,212.47,211.88,0.86723592]
[1693590589835,0.17371009,212.46,211.89,0.86723592]
[1693590590036,0.17371009,212.45,211.9,0.86723592]
[1693590590336,0.17371009,212.44,211.91,0.86723592]
[1693590590535,0.17371009,212.48,211.86,0.86723592]
[1693590590734,0.17371009,212.47,211.87,0.86723592]
[1693590590934,7.07900549,212.52,211.85,0.07703774]
[1693590590935,0.17371009,212.48,211.86,0.86723592]
[1693590591135,0.17371009,212.47,211.87,0.86723592]
[1693590591336,0.17371009,212.46,211.88,0.86723592]
[1693590591636,0.17371009,212.45,211.89,0.86723592]
[1693590591940,0.17371009,212.44,211.9,0.86723592]
[1693590592134,0.17371009,212.49,211.87,0.86723592]
[1693590592330,0.17371009,212.48,211.88,0.86723592]
[1693590592534,0.17371009,212.48,211.87,0.86723592]
[1693590592735,0.17371009,212.48,211.88,0.86723592]
[1693590592928,0.17371009,212.48,211.87,0.86723592]
[1693590593132,0.17371009,212.48,211.88,0.86723592]
[1693590593333,0.17371009,212.48,211.89,0.86723592]
[1693590593538,0.17371009,212.48,211.87,0.86723592]
[1693590593836,0.17371009,212.48,211.88,0.86723592]
[1693590594034,0.17371009,212.48,211.86,0.07703774]
[1693590594035,0.17371009,212.47,211.89,0.86723592]
[1693590594237,0.17371009,212.48,211.88,0.86723592]
[1693590594433,5.05643249,212.49,211.89,0.86723592]
[1693590594434,0.17371009,212.47,211.89,0.86723592]
[1693590594631,0.17371009,212.46,211.9,0.86723592]
[1693590594836,0.17371009,212.45,211.91,0.86723592]
[1693590595036,0.17371009,212.49,211.89,0.86723592]
[1693590595236,5.05643249,212.5,211.88,0.07703774]
[1693590595237,0.17371009,212.48,211.9,0.86723592]
[1693590595436,0.17371009,212.47,211.91,0.86723592]
[1693590595639,0.17371009,212.49,211.89,0.86723592]
[1693590595832,0.17371009,212.49,211.88,0.07703774]
[1693590595833,0.17371009,212.48,211.9,0.86723592]
[1693590596032,0.17371009,212.49,211.89,0.94427366]
[1693590596241,0.17371009,212.49,211.9,0.86723592]
[1693590598039,7.07900549,212.53,211.9,0.94427366]
[1693590598040,0.17371009,212.48,211.9,0.94427366]
[1693590598243,0.17371009,212.49,211.91,0.86723592]
[1693590598443,0.17371009,212.48,211.91,0.86723592]
[1693590598644,0.17371009,212.47,211.91,0.86723592]
[1693590598838,0.17371009,212.46,211.91,0.86723592]
[1693590599036,0.17371009,212.45,211.91,0.86723592]
[1693590599239,0.17371009,212.49,211.91,0.86723592]
[1693590599444,0.17371009,212.48,211.91,0.86723592]
[1693590599641,0.17371009,212.47,211.91,0.86723592]
[1693590599839,5.23014258,212.49,211.91,0.86723592]
[1693590600145,0.17371009,212.48,211.91,0.86723592]
[1693590601246,0.17371009,212.48,211.89,0.07703774]
[1693590601447,0.17371009,212.48,211.9,0.86696363]
[1693590601639,0.17371009,212.48,211.88,0.07703774]
[1693590601845,0.17371009,212.48,211.89,0.86695817]
[1693590602144,5.23014258,212.48,211.89,0.86695817]
[1693590602343,0.17371009,212.47,211.89,0.86695817]
[1693590602738,5.23014258,212.47,211.89,0.86695817]
[1693590602944,0.17371009,212.46,211.89,0.94399591]
[1693590603145,0.17371009,212.47,211.9,0.86695817]
[1693590603346,0.17371009,212.46,211.9,0.86695817]
[1693590603647,0.17371009,212.45,211.9,0.94399591]
[1693590603947,0.17371009,212.44,211.91,0.86695817]
[1693590604139,5.05643249,212.5,211.91,0.94399591]
[1693590604140,0.17371009,212.43,211.91,0.94399591]
[1693590604343,7.07900549,212.52,211.92,0.86695817]
[1693590604344,0.17371009,212.42,211.92,0.86695817]
[1693590604539,0.17371009,212.41,211.92,0.86695817]
[1693590604740,0.17371009,212.4,211.92,0.86695817]
[1693590604943,0.17371009,212.5,211.92,0.86695817]
[1693590605244,0.17371009,212.49,211.92,0.94399591]
[1693590605443,0.17371009,212.5,211.93,0.86695817]
[1693590605646,0.17371009,212.49,211.94,0.86695817]
[1693590605843,0.17371009,212.5,211.93,0.86695817]
[1693590606041,0.17371009,212.49,211.94,0.86684406]
[1693590606242,0.17371009,212.48,211.92,0.07703774]
[1693590606442,0.17371009,212.5,211.93,0.86684267]
[1693590606649,0.17371009,212.49,211.93,0.86684267]
[1693590606848,0.17371009,212.48,211.93,0.86684267]
[1693590607044,0.17371009,212.47,211.93,0.86684267]
[1693590607241,0.17371009,212.5,211.93,0.86684267]
[1693590607443,0.17371009,212.49,211.93,0.86684267]
[1693590607643,0.17371009,212.5,211.93,0.86684267]
[1693590607845,0.17371009,212.49,211.93,0.86684267]
[1693590608051,0.17371009,212.5,211.93,0.86684267]
[1693590608251,0.17371009,212.49,211.93,0.86684267]
[1693590608453,0.17371009,212.48,211.93,0.86684267]
[1693590608752,0.17371009,212.47,211.93,0.86684267]
[1693590608945,0.17371009,212.46,211.93,0.86684267]
[1693590609150,0.17371009,212.45,211.93,0.86684267]
[1693590609351,0.17371009,212.5,211.93,0.86684267]
[1693590610249,0.17371009,212.5,211.92,0.86684267]
[1693590610450,0.17371009,212.5,211.93,0.86684267]
[1693590610649,5.23014258,212.5,211.91,0.07703774]
[1693590610846,0.17371009,212.49,211.92,0.94392216]
[1693590611051,0.17371009,212.49,211.93,0.86688442]
[1693590611246,5.23014258,212.49,211.93,0.86688442]
[1693590611455,0.17371009,212.48,211.93,0.86688442]
[1693590613055,5.23014258,212.48,211.94,0.07703774]
[1693590613256,0.17371009,212.47,211.94,0.07703774]
[1693590613458,0.17371009,212.47,211.98,0.07703774]
[1693590613651,0.17371009,212.46,211.99,0.86664886]
[1693590613848,0.17371009,212.52,211.99,0.86664886]
[1693590614051,0.17371009,212.51,211.99,0.86664886]
[1693590614251,0.17371009,212.5,211.99,0.86664886]
[1693590614455,0.17371009,212.49,211.99,0.9436866]
[1693590614656,0.17371009,212.53,212.0,0.86664886]
[1693590614853,5.05643249,212.54,212.0,0.86664886]
[1693590614854,0.17371009,212.52,212.0,0.86664886]
[1693590615053,0.17371009,212.53,212.0,0.9436866]
[1693590615251,0.17371009,212.52,212.0,0.07703774]
[1693590615451,0.17371009,212.51,212.0,0.07703774]
[1693590615753,0.17371009,212.5,211.99,0.07703774]
[1693590615949,0.17371009,212.52,212.0,0.86659971]
[1693590616154,0.17371009,212.51,212.0,0.86659971]
[1693590616457,0.17371009,212.5,212.0,0.86659971]
[1693590616651,0.17371009,212.53,212.0,0.86659971]
[1693590616853,7.07900549,212.56,212.0,0.86659971]
[1693590616854,0.17371009,212.52,212.0,0.86659971]
[1693590617048,5.23014258,212.54,212.0,0.07703774]
[1693590617256,0.17371009,212.53,212.01,0.86658794]
[1693590617956,0.17371009,212.53,211.99,0.07703774]
[1693590618149,0.17371009,212.53,212.0,0.86660459]
[1693590619156,5.05643249,212.52,212.0,0.86660459]
[1693590619351,0.17371009,212.51,212.0,0.86660459]
[1693590619951,0.17371009,212.52,212.0,0.86660459]
[1693590620155,0.17371009,212.51,212.0,0.86660459]
[1693590620356,0.17371009,212.52,212.0,0.86660459]
[1693590620552,0.17371009,212.51,212.0,0.86660459]
[1693590620756,0.17371009,212.5,212.0,0.86660459]
[1693590621056,0.17371009,212.49,212.0,0.86660459]
[1693590621258,0.17371009,212.53,211.99,0.94364233]
[1693590621457,0.17371009,212.52,212.0,0.86658537]
[1693590621656,0.17371009,212.53,212.0,0.86658537]
[1693590621858,0.17371009,212.52,212.0,0.86658537]
[1693590622152,0.17371009,212.51,212.0,0.86658537]
[1693590622359,0.17371009,212.53,212.0,0.86658537]
[1693590622555,0.17371009,212.52,212.0,0.86658537]
[1693590622857,0.17371009,212.51,212.0,0.86658537]
[1693590623053,0.17371009,212.54,211.99,0.86658537]
[1693590623253,0.17371009,212.53,212.0,0.8665689]
[1693590623455,0.17371009,212.53,211.99,0.8665689]
[1693590623651,0.17371009,212.53,212.0,0.86657139]
[1693590623957,0.17371009,212.53,211.98,0.07703774]
[1693590624159,0.17371009,212.53,211.99,0.86657196]
[1693590624954,0.17371009,212.52,211.99,0.86657196]
[1693590625156,0.17371009,212.51,211.99,0.86657196]
[1693590625354,0.17371009,212.5,211.99,0.86657196]
[1693590625557,0.17371009,212.54,211.99,0.86657196]
[1693590625757,0.17371009,212.53,211.99,0.86657196]
[1693590625958,0.17371009,212.54,211.99,0.86657196]
[1693590626160,0.17371009,212.53,211.99,0.86657196]
[1693590626361,0.17371009,212.54,211.99,0.86657196]
[1693590626860,0.17371009,212.54,211.98,0.86657196]
[1693590627054,0.17371009,212.54,211.99,0.86657196]
[1693590627259,0.17371009,212.54,211.98,0.86657196]
[1693590627553,0.17371009,212.54,211.99,0.86657196]
[1693590627759,0.17371009,212.54,212.0,0.86657196]
[1693590627964,0.17371009,212.54,211.98,0.86657196]
[1693590628153,0.17371009,212.54,211.99,0.86656655]
[1693590630458,0.17371009,212.55,211.99,0.86656655]
[1693590630766,0.17371009,212.54,211.99,0.94360429]
[1693590630965,0.17371009,212.56,212.0,0.86656655]
[1693590631163,0.17371009,212.55,212.0,0.86656655]
[1693590631363,0.17371009,212.56,212.0,0.86656655]
[1693590631562,0.17371009,212.55,212.0,0.86656655]
[1693590631764,5.05643249,212.57,212.0,0.86656655]
[1693590631765,0.17371009,212.56,212.0,0.86656655]
[1693590631958,0.17371009,212.55,212.0,0.86656655]
[1693590632157,0.17371009,212.56,212.0,0.86656655]
[1693590632465,0.17371009,212.55,212.0,0.86656655]
[1693590632661,0.17371009,212.56,212.0,0.86656655]
[1693590632862,0.17371009,212.55,212.0,0.86656655]
[1693590633062,0.17371009,212.56,212.0,0.86656655]
[1693590633262,0.17371009,212.55,212.0,0.86656655]
[1693590633463,0.17371009,212.56,212.0,0.86656655]
[1693590633664,0.17371009,212.55,212.0,0.86656655]
[1693590633860,5.05643249,212.57,212.0,0.86656655]
[1693590633861,0.17371009,212.56,212.0,0.86656655]
[1693590634058,5.05643249,212.57,212.0,0.86656655]
[1693590634059,0.17371009,212.55,212.0,0.86656655]
[1693590634262,0.17371009,212.56,212.0,0.86656655]
[1693590634460,0.17371009,212.55,212.0,0.86656655]
[1693590634660,0.17371009,212.54,212.0,0.86656655]
[1693590634966,0.17371009,212.53,212.0,0.86656655]
[1693590635267,0.17371009,212.52,212.0,0.86656655]
[1693590635460,0.17371009,212.51,212.0,0.86656655]
[1693590635660,0.17371009,212.5,211.99,0.94360429]
[1693590635858,0.17371009,212.49,212.0,0.86656655]
[1693590636060,0.17371009,212.48,212.0,0.86656655]
[1693590636264,0.17371009,212.47,212.01,0.86656655]
[1693590636459,0.17371009,212.55,211.99,0.86656655]
[1693590636662,0.17371009,212.54,212.0,0.86654211]
[1693590636867,0.17371009,212.53,212.01,0.86654211]
[1693590637065,0.17371009,212.52,211.98,0.07703774]
[1693590637267,0.17371009,212.51,211.99,0.94358015]
[1693590637569,0.17371009,212.5,212.0,0.86654241]
[1693590637765,0.17371009,212.54,212.0,0.86654241]
[1693590637965,0.17371009,212.54,211.92,0.15407548]
[1693590637966,0.17371009,212.53,211.99,0.86654241]
[1693590638163,0.17371009,212.54,212.0,0.86657686]
[1693590638368,0.17371009,212.53,211.98,0.86657686]
[1693590638565,0.17371009,212.52,211.98,0.86657686]
[1693590638762,5.05643249,212.52,211.98,0.9436146]
[1693590638968,0.17371009,212.51,211.99,0.86657686]
[1693590640269,5.23014258,212.51,211.99,0.86657686]
[1693590640467,0.17371009,212.5,211.98,0.9436146]
[1693590640667,0.17371009,212.5,211.99,0.86657686]
[1693590640871,0.17371009,212.49,211.99,0.86657686]
[1693590641065,0.17371009,212.5,211.99,0.86657686]
[1693590641271,0.17371009,212.49,211.99,0.86657686]
[1693590641471,0.17371009,212.5,211.99,0.86657686]
[1693590641666,0.17371009,212.49,211.99,0.86657686]
[1693590641871,0.17371009,212.48,211.99,0.86657686]
[1693590642066,0.17371009,212.47,211.99,0.86657686]
[1693590642269,0.17371009,212.46,211.98,0.86657686]
[1693590642471,0.17371009,212.49,211.99,0.86657686]
[1693590642671,0.17371009,212.48,211.99,0.86657686]
[1693590642970,0.17371009,212.47,211.99,0.9436146]
[1693590643171,0.17371009,212.46,212.0,0.86657686]
[1693590643471,0.17371009,212.45,212.0,0.86657686]
[1693590643664,0.17371009,212.44,212.0,0.86657686]
[1693590643871,0.17371009,212.49,212.0,0.86657686]
[1693590644072,0.17371009,212.43,211.93,0.07703774]
[1693590644266,0.17371009,212.43,211.87,0.15407548]
[1693590644267,0.17371009,212.42,211.91,0.07703774]
[1693590644468,0.17371009,212.47,211.92,0.86685087]
[1693590644669,0.17371009,212.46,211.92,0.86685087]
[1693590644870,0.17371009,212.47,211.93,0.07703774]
[1693590645071,7.25271558,212.46,211.92,0.07703774]
[1693590645270,5.05643249,212.43,211.93,0.86682836]
[1693590645471,0.17371009,212.42,211.93,0.86682836]
[1693590645969,0.17371009,212.42,211.93,0.9438661]
[1693590646169,0.17371009,212.42,211.93,0.07703774]
[1693590646375,0.17371009,212.42,211.92,0.07703774]
[1693590646569,0.17371009,212.42,211.93,0.9438668]
[1693590646774,5.23014258,212.42,211.93,0.07703774]
[1693590646970,0.17371009,212.41,211.92,0.07703774]
[1693590647171,0.17371009,212.41,211.93,0.86683183]
[1693590647972,5.23014258,212.41,211.92,0.94386957]
[1693590648176,0.17371009,212.4,211.93,0.86684961]
[1693590649071,0.17371009,212.4,211.91,0.07703774]
[1693590649274,0.17371009,212.4,211.92,0.86685031]
[1693590650076,0.17371009,212.4,211.91,0.86685031]
[1693590650272,0.17371009,212.4,211.9,0.07703774]
[1693590650273,0.17371009,212.4,211.92,0.86685031]
[1693590650474,0.17371009,212.4,211.9,0.07703774]
[1693590650475,0.17371009,212.4,211.91,0.86685031]
[1693590650773,0.17371009,212.4,211.9,0.07703774]
[1693590650774,0.17371009,212.4,211.92,0.86685031]
[1693590650978,0.17371009,212.41,211.91,0.86685031]
[1693590651178,5.05643249,212.42,211.92,0.86685031]
[1693590651179,0.17371009,212.4,211.92,0.86685031]
[1693590651375,0.17371009,212.41,211.9,0.07703774]
[1693590651678,0.17371009,212.4,211.91,0.86685711]
[1693590651874,0.17371009,212.41,211.91,0.86685711]
[1693590652080,0.17371009,212.4,211.92,0.86685711]
[1693590652274,0.17371009,212.4,211.89,0.07703774]
[1693590652275,0.17371009,212.39,211.89,0.07703774]
[1693590652478,0.17371009,212.42,211.9,0.86685798]
[1693590652679,0.17371009,212.41,211.9,0.86685798]
[1693590652874,0.17371009,212.42,211.9,0.86685798]
[1693590653078,0.17371009,212.41,211.9,0.86685798]
[1693590653278,0.17371009,212.42,211.9,0.86685798]
[1693590655080,0.17371009,212.43,211.89,0.86685798]
[1693590655280,0.17371009,212.42,211.9,0.86685798]
[1693590655477,0.17371009,212.43,211.89,0.86685798]
[1693590657678,0.17371009,212.43,211.9,0.86685798]
[1693590657882,0.17371009,212.43,211.87,0.07703774]
[1693590657883,0.17371009,212.43,211.88,0.86685798]
[1693590658084,0.17371009,212.43,211.89,0.86685798]
[1693590658285,0.17371009,212.43,211.88,0.86685798]
[1693590658584,0.17371009,212.43,211.89,0.86685798]
[1693590658783,5.23014258,212.43,211.88,0.86685798]
[1693590658982,0.17371009,212.42,211.89,0.86685798]
[1693590659180,0.17371009,212.42,211.87,0.86685798]
[1693590660282,0.17371009,212.42,211.86,0.86685798]
[1693590660485,0.17371009,212.42,211.87,0.86685798]
[1693590661079,0.17371009,212.42,211.88,0.86685798]
[1693590661384,0.17371009,212.42,211.89,0.86685798]
[1693590661578,0.17371009,212.42,211.86,0.94389572]
[1693590661782,0.17371009,212.42,211.87,0.86685798]
[1693590662184,0.17371009,212.42,211.86,0.86685798]
[1693590662385,0.17371009,212.42,211.87,0.86685798]
[1693590662686,0.17371009,212.42,211.88,0.86685798]
[1693590662885,0.17371009,212.42,211.86,0.86685798]
[1693590663085,0.17371009,212.42,211.87,0.86685798]
[1693590663385,0.17371009,212.42,211.88,0.86685798]
[1693590663586,0.17371009,212.42,211.86,0.86685798]
[1693590663881,0.17371009,212.42,211.87,0.86685798]
[1693590664104,0.17371009,212.42,211.88,0.86685798]
[1693590664279,5.05643249,212.41,211.82,0.07703774]
[1693590664486,0.17371009,212.4,211.83,0.86700073]
[1693590664985,0.17371009,212.4,211.83,0.94403847]